fUSD/lending_fUSD_20250110
["ID","MTS","AMOUNT","RATE_DAILY","PERIOD"]
[348420440,1736524244260,-500.0,9.009e-05,2]
[348420441,1736524244271,-500.0,9.009e-05,2]
[348420442,1736524244280,-500.0,9.009e-05,2]
[348420443,1736524244290,-500.0,9.009e-05,2]
[348420444,1736524244299,-873.09,9.009e-05,2]
[348420445,1736524244310,-1763.77,9.009e-05,2]
[348420446,1736524244319,-500.0,9.009e-05,2]
[348420447,1736524244328,-500.0,9.009e-05,2]
[348420448,1736524244338,-965.26,9.009e-05,2]
[348420449,1736524244348,-1690.28,9.009e-05,2]
[348420450,1736524244357,-500.0,9.009e-05,2]
[348420451,1736524244372,-500.0,9.009e-05,2]
[348420452,1736524244381,-507.74,9.009e-05,2]
[348420453,1736524244391,-570.26,9.009e-05,2]
[348420454,1736524244401,-1258.78,9.009e-05,2]
[348420455,1736524244412,-500.0,9.009e-05,2]
[348420456,1736524244422,-1471.01,9.009e-05,2]
[348420457,1736524244432,-1409.72,9.009e-05,2]
[348420458,1736524244443,-589.92,9.009e-05,2]
[348420459,1736524244456,-500.0,9.01e-05,2]
[348420460,1736524244466,-761.8,9.01e-05,2]
[348420461,1736524244478,-500.0,9.01e-05,2]
[348420462,1736524244489,-939.91,9.01e-05,2]
[348420463,1736524244500,-961.78,9.01e-05,2]
[348420464,1736524244510,-822.48,9.01e-05,2]
[348420465,1736524244519,-500.0,9.01e-05,2]
[348420466,1736524244530,-566.63,9.01e-05,2]
[348420467,1736524244540,-501.60439625,9.01e-05,2]
[348420468,1736524244550,-500.0,9.01e-05,2]
[348420469,1736524244566,-500.0,9.01e-05,2]
[348420470,1736524244576,-500.0,9.01e-05,2]
[348420471,1736524244587,-500.0,9.01e-05,2]
[348420472,1736524244598,-745.23,9.01e-05,2]
[348420473,1736524244608,-1068.97,9.01e-05,2]
[348420474,1736524244620,-822.16,9.01e-05,2]
[348420475,1736524244630,-233.18460689,9.01e-05,2]
[348420476,1736524244640,-500.0,9.01e-05,2]
[348420477,1736524244650,-858.49,9.01e-05,2]
[348420478,1736524244660,-500.0,9.01e-05,2]
[348420479,1736524244670,-500.0,9.01e-05,2]
[348420480,1736524244680,-846.15,9.01e-05,2]
[348420481,1736524244689,-500.0,9.01e-05,2]
[348420482,1736524244699,-500.0,9.01e-05,2]
[348420483,1736524244710,-363.61234909,9.01e-05,2]
[348420484,1736524244720,-500.0,9.01e-05,2]
[348420485,1736524244731,-500.0,9.01e-05,2]
[348420486,1736524244741,-500.0,9.01e-05,2]
[348420487,1736524244752,-500.0,9.01e-05,2]
[348420488,1736524244762,-1010.23,9.01e-05,2]
[348420489,1736524244773,-1140.26,9.01e-05,2]
[348420490,1736524244783,-500.0,9.01e-05,2]
[348420491,1736524244794,-709.1,9.01e-05,2]
[348420492,1736524244804,-500.0,9.01e-05,2]
[348420493,1736524244814,-508.79242213,9.01e-05,2]
[348420494,1736524244825,-933.11,9.01e-05,2]
[348420495,1736524244836,-500.0,9.01e-05,2]
[348420496,1736524244846,-1046.94,9.01e-05,2]
[348420497,1736524244857,-602.2,9.01e-05,2]
[348420498,1736524244870,-888.35,9.01e-05,2]
[348420499,1736524244880,-500.0,9.01e-05,2]
[348420500,1736524244890,-500.0,9.01e-05,2]
[348420501,1736524244900,-500.0,9.01e-05,2]
[348420502,1736524244913,-627.38,9.01e-05,2]
[348420503,1736524244923,-500.0,9.01e-05,2]
[348420504,1736524244934,-1166.68,9.01e-05,2]
[348420505,1736524244944,-500.0,9.01e-05,2]
[348420506,1736524244954,-500.0,9.01e-05,2]
[348420507,1736524244965,-967.77,9.01e-05,2]
[348420508,1736524244977,-500.0,9.01e-05,2]
[348420509,1736524244986,-500.0,9.01e-05,2]
[348420510,1736524244998,-500.0,9.01e-05,2]
[348420511,1736524245009,-1005.93,9.01e-05,2]
[348420512,1736524245020,-781.9,9.01e-05,2]
[348420513,1736524245030,-500.0,9.01e-05,2]
[348420514,1736524245041,-2150.01,9.01e-05,2]
[348420515,1736524245051,-500.0,9.01e-05,2]
[348420516,1736524245061,-1052.34,9.01e-05,2]
[348420517,1736524245072,-912.91,9.01e-05,2]
[348420518,1736524245088,-1815.27,9.01e-05,2]
[348420519,1736524245098,-500.0,9.01e-05,2]
[348420520,1736524245108,-856.07,9.01e-05,2]
[348420521,1736524245122,-966.55,9.01e-05,2]
[348420522,1736524245131,-1861.8,9.01e-05,2]
[348420523,1736524245141,-688.9,9.01e-05,2]
[348420524,1736524245152,-1068.54,9.01e-05,2]
[348420525,1736524245162,-978.06,9.01e-05,2]
[348420526,1736524245172,-500.0,9.01e-05,2]
[348420527,1736524245183,-587.28,9.01e-05,2]
[348420528,1736524245194,-877.06,9.01e-05,2]
[348420529,1736524245204,-766.28,9.01e-05,2]
[348420530,1736524245214,-2611.4,9.01e-05,2]
[348420531,1736524245224,-1556.83,9.01e-05,2]
[348420532,1736524245234,-826.2,9.01e-05,2]
[348420533,1736524245244,-7495.58,9.01e-05,2]
[348420534,1736524245255,-784.4,9.01e-05,2]
[348420535,1736524245266,-500.0,9.01e-05,2]
[348420536,1736524245276,-797.2,9.01e-05,2]
[348420537,1736524245286,-915.4,9.01e-05,2]
[348420538,1736524245295,-1078.79,9.01e-05,2]
[348420539,1736524245307,-1363.41,9.01e-05,2]
[348420540,1736524245316,-500.0,9.01e-05,2]
[348420541,1736524245327,-1339.84,9.01e-05,2]
[348420542,1736524245338,-1267.14,9.01e-05,2]
[348420544,1736524245348,-500.0,9.01e-05,2]
[348420545,1736524245362,-1698.13,9.01e-05,2]
[348420546,1736524245375,-949.94,9.01e-05,2]
[348420547,1736524245385,-1813.78,9.01e-05,2]
[348420548,1736524245396,-500.0,9.01e-05,2]
[348420549,1736524245408,-500.0,9.01e-05,2]
[348420550,1736524245420,-500.0,9.01e-05,2]
[348420551,1736524245431,-5166.39,9.01e-05,2]
[348420552,1736524245442,-3593.7,9.01e-05,2]
[348420553,1736524245454,-1020.92,9.01e-05,2]
[348420554,1736524245464,-500.0,9.01e-05,2]
[348420556,1736524245476,-1241.67,9.01e-05,2]
[348420558,1736524245486,-742.95,9.01e-05,2]
[348420560,1736524245496,-675.3,9.01e-05,2]
[348420563,1736524245509,-1052.3,9.01e-05,2]
[348420565,1736524245519,-792.94,9.01e-05,2]
[348420566,1736524245529,-675.43,9.011e-05,2]
[348420567,1736524245538,-714.54,9.011e-05,2]
[348420568,1736524245548,-500.0,9.011e-05,2]
[348420569,1736524245558,-3297.03,9.011e-05,2]
[348420570,1736524245568,-971.52,9.011e-05,2]
[348420571,1736524245578,-764.62,9.011e-05,2]
[348420572,1736524245588,-764.62,9.011e-05,2]
[348420573,1736524245603,-500.0,9.011e-05,2]
[348420574,1736524245618,-621.27,9.011e-05,2]
[348420575,1736524245628,-500.0,9.011e-05,2]
[348420576,1736524245638,-500.0,9.011e-05,2]
[348420577,1736524245648,-250.2229821,9.011e-05,2]
[348420578,1736524245658,-500.0,9.011e-05,2]
[348420579,1736524245669,-500.0,9.011e-05,2]
[348420580,1736524245679,-500.0,9.011e-05,2]
[348420581,1736524245689,-190.86,9.011e-05,2]
[348420582,1736524245699,-535.32,9.011e-05,2]
[348420583,1736524245709,-1434.01,9.011e-05,2]
[348420584,1736524245719,-620.31,9.011e-05,2]
[348420585,1736524245729,-500.0,9.011e-05,2]
[348420586,1736524245739,-500.0,9.011e-05,2]
[348420587,1736524245749,-500.0,9.011e-05,2]
[348420588,1736524245759,-500.0,9.011e-05,2]
[348420589,1736524245769,-635.49,9.011e-05,2]
[348420590,1736524245779,-1010.79,9.011e-05,2]
[348420591,1736524245789,-500.0,9.011e-05,2]
[348420592,1736524245798,-1419.64,9.011e-05,2]
[348420593,1736524245810,-380.49074988,9.011e-05,2]
[348420594,1736524245819,-500.0,9.011e-05,2]
[348420595,1736524245830,-609.13,9.011e-05,2]
[348420596,1736524245840,-1774.64,9.011e-05,2]
[348420597,1736524245849,-1039.15,9.011e-05,2]
[348420598,1736524245863,-528.76,9.011e-05,2]
[348420599,1736524245873,-500.0,9.011e-05,2]
[348420600,1736524245883,-994.56,9.011e-05,2]
[348420601,1736524245894,-593.02,9.011e-05,2]
[348420602,1736524245905,-1240.07,9.011e-05,2]
[348420603,1736524245918,-814.5,9.011e-05,2]
[348420604,1736524245929,-868.17,9.011e-05,2]
[348420605,1736524245940,-953.37,9.011e-05,2]
[348420606,1736524245951,-500.0,9.011e-05,2]
[348420607,1736524245963,-500.0,9.011e-05,2]
[348420608,1736524245973,-500.0,9.011e-05,2]
[348420609,1736524245983,-500.0,9.011e-05,2]
[348420610,1736524245994,-500.0,9.011e-05,2]
[348420611,1736524246004,-602.58606876,9.011e-05,2]
[348420612,1736524246015,-789.01,9.011e-05,2]
[348420613,1736524246025,-500.0,9.011e-05,2]
[348420614,1736524246035,-1265.34,9.011e-05,2]
[348420615,1736524246045,-500.0,9.011e-05,2]
[348420616,1736524246055,-500.0,9.011e-05,2]
[348420617,1736524246065,-500.0,9.011e-05,2]
[348420618,1736524246074,-3093.1,9.011e-05,2]
[348420619,1736524246084,-864.42,9.011e-05,2]
[348420620,1736524246094,-500.0,9.011e-05,2]
[348420621,1736524246104,-500.0,9.011e-05,2]
[348420622,1736524246126,-1766.75,9.011e-05,2]
[348420624,1736524246139,-1402.75,9.011e-05,2]
[348420625,1736524246150,-500.0,9.011e-05,2]
[348420626,1736524246161,-555.91,9.011e-05,2]
[348420627,1736524246172,-500.0,9.011e-05,2]
[348420628,1736524246184,-652.78,9.011e-05,2]
[348420629,1736524246195,-502.7078102,9.011e-05,2]
[348420630,1736524246207,-608.24,9.011e-05,2]
[348420631,1736524246218,-504.84332597,9.011e-05,2]
[348420632,1736524246229,-4401.25,9.011e-05,2]
[348420633,1736524246240,-500.0,9.011e-05,2]
[348420634,1736524246250,-500.0,9.011e-05,2]
[348420635,1736524246261,-500.0,9.011e-05,7]
[348420636,1736524246272,-500.0,9.011e-05,2]
[348420637,1736524246283,-500.0,9.011e-05,2]
[348420638,1736524246295,-880.99,9.011e-05,2]
[348420639,1736524246307,-500.0,9.011e-05,2]
[348420640,1736524246318,-4953.9,9.011e-05,2]
[348420641,1736524246329,-500.0,9.011e-05,2]
[348420642,1736524246340,-500.0,9.011e-05,2]
[348420643,1736524246352,-500.0,9.011e-05,2]
[348420644,1736524246364,-1040.05,9.011e-05,2]
[348420645,1736524246375,-500.0,9.011e-05,2]
[348420646,1736524246385,-500.0,9.011e-05,2]
[348420647,1736524246395,-500.0,9.011e-05,2]
[348420648,1736524246406,-335.02,9.011e-05,2]
[348420649,1736524246416,-500.0,9.011e-05,2]
[348420650,1736524246428,-728.84,9.011e-05,2]
[348420651,1736524246445,-787.78,9.011e-05,2]
[348420652,1736524246461,-901.88,9.011e-05,2]
[348420653,1736524246473,-895.76,9.011e-05,2]
[348420654,1736524246485,-500.0,9.011e-05,2]
[348420655,1736524246497,-677.22,9.011e-05,2]
[348420656,1736524246508,-500.0,9.011e-05,2]
[348420657,1736524246521,-500.0,9.011e-05,2]
[348420658,1736524246531,-500.0,9.011e-05,2]
[348420659,1736524246542,-2539.7,9.011e-05,2]
[348420660,1736524246554,-812.91,9.011e-05,2]
[348420661,1736524246566,-500.0,9.011e-05,2]
[348420662,1736524246577,-500.0,9.011e-05,2]
[348420663,1736524246590,-500.0,9.011e-05,2]
[348420664,1736524246603,-500.0,9.011e-05,2]
[348420665,1736524246619,-500.0,9.011e-05,2]
[348420666,1736524246629,-500.0,9.011e-05,2]
[348420667,1736524246642,-500.0,9.011e-05,2]
[348420668,1736524246657,-626.16,9.011e-05,2]
[348420669,1736524246670,-500.0,9.011e-05,2]
[348420670,1736524246681,-500.0,9.011e-05,2]
[348420671,1736524246693,-500.0,9.011e-05,2]
[348420672,1736524246703,-531.17077151,9.011e-05,2]
[348420673,1736524246715,-500.0,9.011e-05,2]
[348420674,1736524246727,-235.15100063,9.011e-05,2]
[348420675,1736524246738,-544.97,9.011e-05,2]
[348420676,1736524246748,-500.0,9.011e-05,2]
[348420677,1736524246758,-500.0,9.011e-05,2]
[348420678,1736524246769,-500.0,9.011e-05,2]
[348420679,1736524246779,-5186.84,9.011e-05,2]
[348420680,1736524246791,-500.0,9.011e-05,2]
[348420681,1736524246801,-707.45,9.011e-05,2]
[348420682,1736524246812,-500.0,9.011e-05,2]
[348420683,1736524246822,-500.0,9.011e-05,2]
[348420684,1736524246833,-686.88,9.011e-05,2]
[348420685,1736524246843,-500.0,9.011e-05,2]
[348420686,1736524246854,-557.92683947,9.011e-05,2]
[348420687,1736524246868,-500.0,9.011e-05,2]
[348420688,1736524246880,-657.79,9.011e-05,2]
[348420689,1736524246890,-500.0,9.011e-05,2]
[348420690,1736524246901,-500.0,9.011e-05,2]
[348420691,1736524246912,-500.0,9.011e-05,2]
[348420692,1736524246926,-500.0,9.011e-05,2]
[348420693,1736524246936,-516.55,9.011e-05,2]
[348420694,1736524246947,-500.0,9.011e-05,2]
[348420695,1736524246958,-500.0,9.011e-05,2]
[348420696,1736524246969,-500.0,9.011e-05,2]
[348420697,1736524246980,-856.71,9.011e-05,2]
[348420698,1736524246990,-501.04184284,9.011e-05,2]
[348420699,1736524247217,-783.7,9.011e-05,2]
[348420700,1736524247245,-794.78,9.011e-05,2]
[348420701,1736524247256,-1062.86,9.011e-05,2]
[348420702,1736524247266,-500.0,9.011e-05,2]
[348420703,1736524247277,-500.0,9.011e-05,2]
[348420704,1736524247288,-500.0,9.011e-05,2]
[348420705,1736524247298,-3899.76,9.011e-05,2]
[348420706,1736524247310,-500.0,9.011e-05,2]
[348420707,1736524247320,-500.0,9.011e-05,2]
[348420708,1736524247332,-428.22786466,9.011e-05,2]
[348420709,1736524247344,-500.0,9.011e-05,2]
[348420710,1736524247355,-500.0,9.011e-05,2]
[348420711,1736524247367,-634.52,9.011e-05,2]
[348420712,1736524247377,-500.0,9.011e-05,2]
[348420713,1736524247388,-503.8026249,9.011e-05,2]
[348420714,1736524247398,-500.0,9.011e-05,2]
[348420715,1736524247408,-292.64825371,9.011e-05,2]
[348420716,1736524247418,-500.0,9.011e-05,2]
[348420717,1736524247429,-1022.03,9.011e-05,2]
[348420718,1736524247439,-939.3,9.011e-05,2]
[348420719,1736524247451,-691.24,9.011e-05,2]
[348420720,1736524247461,-500.0,9.011e-05,2]
[348420721,1736524247471,-4054.05,9.011e-05,2]
[348420722,1736524247483,-577.82,9.011e-05,2]
[348420723,1736524247495,-813.45,9.011e-05,2]
[348420724,1736524247506,-500.0,9.011e-05,2]
[348420725,1736524247516,-500.0,9.011e-05,2]
[348420726,1736524247527,-500.0,9.011e-05,2]
[348420727,1736524247537,-500.0,9.011e-05,2]
[348420728,1736524247547,-570.44958384,9.011e-05,2]
[348420729,1736524247557,-500.0,9.011e-05,2]
[348420730,1736524247567,-1362.38,9.011e-05,2]
[348420731,1736524247578,-405.32114139,9.011e-05,2]
[348420732,1736524247588,-500.0,9.011e-05,2]
[348420733,1736524247600,-500.0,9.011e-05,2]
[348420734,1736524247611,-1051.14,9.011e-05,2]
[348420735,1736524247622,-500.0,9.011e-05,2]
[348420736,1736524247633,-603.46074082,9.011e-05,2]
[348420737,1736524247644,-500.0,9.011e-05,2]
[348420738,1736524247654,-1335.65,9.011e-05,2]
[348420739,1736524247664,-500.0,9.011e-05,2]
[348420740,1736524247674,-500.0,9.011e-05,2]
[348420741,1736524247684,-500.0,9.011e-05,2]
[348420742,1736524247694,-941.46,9.011e-05,2]
[348420743,1736524247704,-500.0,9.011e-05,2]
[348420744,1736524247715,-1314.49,9.011e-05,2]
[348420745,1736524247726,-500.0,9.011e-05,2]
[348420746,1736524247737,-500.0,9.011e-05,2]
[348420747,1736524247747,-415.70310438,9.011e-05,2]
[348420748,1736524247757,-500.0,9.011e-05,2]
[348420749,1736524247768,-500.0,9.011e-05,2]
[348420750,1736524247779,-500.0,9.011e-05,2]
[348420751,1736524247790,-500.0,9.011e-05,2]
[348420752,1736524247801,-500.0,9.011e-05,2]
[348420753,1736524247812,-500.0,9.011e-05,2]
[348420754,1736524247822,-2098.32,9.011e-05,2]
[348420755,1736524247832,-1156.61,9.011e-05,2]
[348420756,1736524247842,-500.0,9.011e-05,2]
[348420757,1736524247853,-500.0,9.011e-05,2]
[348420758,1736524247864,-659.09,9.011e-05,2]
[348420759,1736524247874,-1381.15,9.011e-05,2]
[348420760,1736524247885,-500.0,9.011e-05,2]
[348420761,1736524247896,-500.0,9.011e-05,2]
[348420762,1736524247907,-500.0,9.011e-05,2]
[348420763,1736524247920,-500.0,9.011e-05,2]
[348420764,1736524247930,-500.0,9.011e-05,2]
[348420765,1736524247941,-500.0,9.011e-05,2]
[348420766,1736524247952,-1912.15,9.011e-05,2]
[348420767,1736524247963,-511.82,9.011e-05,2]
[348420768,1736524247972,-951.49,9.011e-05,2]
[348420769,1736524247983,-622.11,9.011e-05,2]
[348420770,1736524247994,-500.0,9.011e-05,2]
[348420771,1736524248005,-500.0,9.011e-05,2]
[348420772,1736524248016,-500.63780037,9.012e-05,2]
[348420773,1736524248026,-500.0,9.012e-05,2]
[348420774,1736524248043,-500.0,9.012e-05,2]
[348420775,1736524248053,-500.0,9.012e-05,2]
[348420776,1736524248064,-952.88,9.012e-05,2]
[348420777,1736524248075,-500.0,9.012e-05,2]
[348420778,1736524248086,-500.0,9.012e-05,2]
[348420779,1736524248098,-705.22,9.012e-05,2]
[348420780,1736524248109,-974.31,9.012e-05,2]
[348420781,1736524248124,-500.0,9.012e-05,2]
[348420782,1736524248135,-1038.13,9.012e-05,2]
[348420783,1736524248146,-500.0,9.012e-05,2]
[348420784,1736524248158,-579.82,9.012e-05,2]
[348420785,1736524248168,-1012.33,9.012e-05,2]
[348420786,1736524248178,-648.63,9.012e-05,2]
[348420787,1736524248188,-500.0,9.012e-05,2]
[348420788,1736524248198,-571.87,9.012e-05,2]
[348420789,1736524248208,-500.0,9.012e-05,2]
[348420790,1736524248217,-1172.84,9.012e-05,2]
[348420791,1736524248228,-796.64,9.012e-05,2]
[348420792,1736524248238,-974.54,9.012e-05,2]
[348420793,1736524248247,-500.0,9.012e-05,2]
[348420794,1736524248258,-1273.5,9.012e-05,2]
[348420795,1736524248269,-659.75,9.012e-05,2]
[348420796,1736524248280,-500.0,9.012e-05,2]
[348420797,1736524248290,-886.68,9.012e-05,2]
[348420798,1736524248300,-500.0,9.012e-05,2]
[348420799,1736524248311,-500.0,9.012e-05,2]
[348420800,1736524248320,-1963.72,9.012e-05,2]
[348420801,1736524248331,-6187.03,9.012e-05,2]
[348420802,1736524248341,-1822.9,9.012e-05,2]
[348420803,1736524248352,-2565.68,9.012e-05,2]
[348420804,1736524248362,-3150.34,9.012e-05,2]
[348420805,1736524248375,-4721.83,9.013e-05,2]
[348420806,1736524248385,-2272.62,9.013e-05,2]
[348420807,1736524248396,-1591.49,9.013e-05,2]
[348420808,1736524248406,-2329.78,9.013e-05,2]
[348420809,1736524248417,-1432.42,9.013e-05,2]
[348420810,1736524248428,-1975.6,9.024e-05,2]
[348420811,1736524248439,-1883.34,9.051e-05,2]
[348420812,1736524248450,-1704.97,9.051e-05,2]
[348420813,1736524248460,-772.13,9.051e-05,2]
[348420814,1736524248470,-4013.17,9.051e-05,2]
[348420815,1736524248480,-1747.53,9.125e-05,2]
[348420816,1736524248491,-500.0,9.125e-05,2]
[348420817,1736524248501,-1348.6,9.125e-05,2]
[348420818,1736524248511,-3203.72,9.125e-05,2]
[348420819,1736524248521,-1647.23,9.125e-05,2]
[348420820,1736524248532,-1103.85,9.125e-05,2]
[348420821,1736524248542,-1226.84,9.125e-05,2]
[348420822,1736524248553,-843.28,9.125e-05,2]
[348420823,1736524248563,-1796.31,9.125e-05,2]
[348420824,1736524248573,-1043.14,9.125e-05,2]
[348420825,1736524248583,-1316.27,9.125e-05,2]
[348420826,1736524248593,-1311.99,9.125e-05,2]
[348420827,1736524248603,-2157.87,9.125e-05,2]
[348420828,1736524248615,-2366.16,9.125e-05,2]
[348420829,1736524248626,-2149.91,9.125e-05,2]
[348420830,1736524248637,-584.27805932,9.161e-05,2]
[348420831,1736524248649,-151.84417626,9.198e-05,2]
[348420832,1736524248659,-8696.06,9.226e-05,2]
[348420833,1736524248668,-1684.62,9.226e-05,2]
[348420834,1736524248678,-1188.63,9.226e-05,2]
[348420835,1736524248688,-1197.62,9.226e-05,2]
[348420836,1736524248699,-2275.37,9.226e-05,2]
[348420837,1736524248710,-662.96,9.226e-05,2]
[348420838,1736524248720,-1191.38,9.226e-05,2]
[348420839,1736524248731,-1000.0,9.247e-05,2]
[348420840,1736524248741,-1000.0,9.261e-05,2]
[348420841,1736524248751,-500.0,9.283e-05,2]
[348420842,1736524248761,-500.0,9.283e-05,2]
[348420843,1736524248771,-500.0,9.283e-05,2]
[348420844,1736524248781,-500.0,9.283e-05,2]
[348420845,1736524248791,-500.0,9.283e-05,2]
[348420846,1736524248802,-500.0,9.283e-05,2]
[348420847,1736524248812,-500.0,9.283e-05,2]
[348420848,1736524248822,-1593.59,9.283e-05,2]
[348420849,1736524248833,-500.0,9.283e-05,2]
[348420850,1736524248843,-1043.52,9.283e-05,2]
[348420851,1736524248853,-500.0,9.283e-05,2]
[348420852,1736524248864,-500.0,9.283e-05,2]
[348420853,1736524248874,-876.27,9.283e-05,2]
[348420854,1736524248885,-500.0,9.283e-05,2]
[348420855,1736524248896,-2264.41,9.283e-05,2]
[348420856,1736524248906,-1584.14,9.283e-05,2]
[348420857,1736524248919,-260.16,9.283e-05,2]
[348420858,1736524248930,-1819.95,9.283e-05,2]
[348420859,1736524248941,-500.0,9.283e-05,2]
[348420860,1736524248951,-439.35194953,9.283e-05,2]
[348420861,1736524248962,-1002.74,9.283e-05,2]
[348420862,1736524248972,-500.0,9.283e-05,2]
[348420863,1736524248983,-3030.78,9.283e-05,2]
[348420864,1736524248994,-164.8475688,9.283e-05,2]
[348420865,1736524249005,-2135.04,9.283e-05,2]
[348420866,1736524249015,-500.0,9.283e-05,2]
[348420867,1736524249026,-1215.89,9.283e-05,2]
[348420868,1736524249036,-1582.69,9.283e-05,2]
[348420869,1736524249046,-3156.38,9.283e-05,2]
[348420870,1736524249057,-500.0,9.283e-05,2]
[348420871,1736524249068,-500.0,9.283e-05,2]
[348420872,1736524249079,-873.09,9.283e-05,2]
[348420873,1736524249090,-1763.77,9.283e-05,2]
[348420874,1736524249100,-378.03621014,9.283e-05,2]
[348420875,1736524249110,-565.20317667,9.283e-05,2]
[348420876,1736524249124,-965.26,9.283e-05,2]
[348420877,1736524249134,-1690.28,9.283e-05,2]
[348420878,1736524249145,-500.0,9.283e-05,2]
[348420879,1736524249155,-507.74,9.283e-05,2]
[348420880,1736524249164,-570.26,9.283e-05,2]
[348420881,1736524249174,-1258.78,9.283e-05,2]
[348420882,1736524249183,-500.0,9.283e-05,2]
[348420883,1736524249194,-1471.01,9.283e-05,2]
[348420884,1736524249204,-1409.72,9.283e-05,2]
[348420885,1736524249213,-589.92,9.283e-05,2]
[348420886,1736524249223,-311.25607775,9.284e-05,2]
[348420887,1736524249234,-761.8,9.284e-05,2]
[348420888,1736524249245,-500.0,9.284e-05,2]
[348420889,1736524249256,-939.91,9.284e-05,2]
[348420890,1736524249266,-961.78,9.284e-05,2]
[348420891,1736524249276,-822.48,9.284e-05,2]
[348420892,1736524249287,-566.63,9.284e-05,2]
[348420893,1736524249297,-500.0,9.284e-05,2]
[348420894,1736524249307,-500.0,9.284e-05,2]
[348420895,1736524249318,-500.0,9.284e-05,2]
[348420896,1736524249327,-500.0,9.284e-05,2]
[348420897,1736524249337,-745.23,9.284e-05,2]
[348420898,1736524249348,-1068.97,9.284e-05,2]
[348420899,1736524249358,-822.16,9.284e-05,2]
[348420900,1736524249370,-500.0,9.284e-05,2]
[348420901,1736524249380,-858.49,9.284e-05,2]
[348420902,1736524249390,-500.0,9.284e-05,2]
[348420903,1736524249399,-846.15,9.284e-05,2]
[348420904,1736524249409,-500.0,9.284e-05,2]
[348420905,1736524249419,-327.06770995,9.284e-05,2]
[348420906,1736524249429,-500.0,9.284e-05,2]
[348420907,1736524249440,-500.0,9.284e-05,2]
[348420908,1736524249450,-500.0,9.284e-05,2]
[348420909,1736524249461,-500.0,9.284e-05,2]
[348420910,1736524249470,-1010.23,9.284e-05,2]
[348420911,1736524249481,-1140.26,9.284e-05,2]
[348420912,1736524249492,-500.0,9.284e-05,2]
[348420913,1736524249502,-709.1,9.284e-05,2]
[348420914,1736524249513,-500.0,9.284e-05,2]
[348420915,1736524249523,-933.11,9.284e-05,2]
[348420916,1736524249534,-500.0,9.284e-05,2]
[348420917,1736524249546,-1046.94,9.284e-05,2]
[348420918,1736524249559,-602.2,9.284e-05,2]
[348420919,1736524249569,-888.35,9.284e-05,2]
[348420920,1736524249579,-500.0,9.284e-05,2]
[348420921,1736524249589,-500.0,9.284e-05,2]
[348420922,1736524249599,-500.0,9.284e-05,2]
[348420923,1736524249610,-627.38,9.284e-05,2]
[348420924,1736524249622,-500.0,9.284e-05,2]
[348420925,1736524249632,-1166.68,9.284e-05,2]
[348420926,1736524249642,-500.0,9.284e-05,2]
[348420927,1736524249652,-967.77,9.284e-05,2]
[348420928,1736524249663,-500.0,9.284e-05,2]
[348420929,1736524249672,-500.0,9.284e-05,2]
[348420930,1736524249682,-500.0,9.284e-05,2]
[348420931,1736524249692,-1005.93,9.284e-05,2]
[348420932,1736524249703,-781.9,9.284e-05,2]
[348420933,1736524249712,-500.0,9.284e-05,2]
[348420934,1736524249722,-2150.01,9.284e-05,2]
[348420935,1736524249733,-500.0,9.284e-05,2]
[348420936,1736524249743,-1052.34,9.284e-05,2]
[348420937,1736524249753,-912.91,9.284e-05,2]
[348420938,1736524249762,-1815.27,9.284e-05,2]
[348420939,1736524249772,-500.0,9.284e-05,2]
[348420940,1736524249782,-856.07,9.284e-05,2]
[348420941,1736524249792,-966.55,9.284e-05,2]
[348420942,1736524249801,-1861.8,9.284e-05,2]
[348420943,1736524249811,-688.9,9.284e-05,2]
[348420944,1736524249821,-1068.54,9.284e-05,2]
[348420945,1736524249831,-978.06,9.284e-05,2]
[348420946,1736524249840,-500.0,9.284e-05,2]
[348420947,1736524249927,-587.28,9.284e-05,2]